bitfinex/quotes_SOLUSD_20220118
["timestamp","ask_amount","ask_price","bid_price","bid_amount"]
[1642516623948,10.51380786,134.58,134.5,35.44761263]
[1642516624145,16.42080786,134.58,134.5,35.44761263]
[1642516624345,16.42080786,134.58,134.5,46.59641263]
[1642516624648,10.42080786,134.58,134.5,46.59641263]
[1642516624846,6.86593412,134.61,134.51,74.1]
[1642516624847,8.40674198,134.61,134.51,74.1]
[1642516625048,1.54080786,134.61,134.51,77.072]
[1642516625250,1.54080786,134.61,134.51,79.04098048]
[1642516625546,1.54080786,134.61,134.53,11.146]
[1642516626649,8.88,134.62,134.53,11.146]
[1642516626849,8.88,134.62,134.54,73.85]
[1642516627074,1.54080786,134.64,134.57,11.1425]
[1642516627575,1.54080786,134.65,134.57,11.1425]
[1642516627975,12.68420786,134.65,134.57,11.1425]
[1642516628175,12.68420786,134.65,134.55,56.47804261]
[1642516628575,11.1434,134.65,134.55,56.47804261]
[1642516628976,0.25,134.64,134.55,56.47804261]
[1642516629178,11.3946,134.64,134.55,56.47804261]
[1642516629376,11.3946,134.64,134.55,11.144]
[1642516629581,11.3946,134.64,134.53,14.1166]
[1642516629777,2.971,134.63,134.52,2.07275068]
[1642516629978,8.88,134.62,134.52,2.07275068]
[1642516630178,11.1491,134.6,134.52,2.07275068]
[1642516630377,11.1491,134.6,134.52,44.91232816]
[1642516630676,11.1491,134.6,134.51,2.972]
[1642516630879,12.102,134.59,134.49,2.07275068]
[1642516631076,18.102,134.59,134.49,2.07275068]
[1642516631577,18.102,134.59,134.49,37.33293439]
[1642516632582,11.152,134.56,134.49,37.33293439]
[1642516632782,20.032,134.56,134.49,37.33293439]
[1642516634480,8.88,134.56,134.49,37.33293439]
[1642516634681,6.0,134.59,134.5,3.223]
[1642516634885,6.0,134.59,134.5,2.973]
[1642516635085,14.88,134.6,134.5,2.973]
[1642516635684,14.88,134.6,134.51,0.25]
[1642516635884,26.0275,134.6,134.52,2.972]
[1642516636087,0.25,134.59,134.52,2.972]
[1642516637486,8.817,134.59,134.49,51.45393439]
[1642516637887,6.0,134.58,134.49,51.45393439]
[1642516638188,6.0,134.58,134.49,48.48193439]
[1642516638189,0.25,134.57,134.49,48.48193439]
[1642516638501,11.4003,134.57,134.49,48.48193439]
[1642516638689,11.1503,134.57,134.49,48.48193439]
[1642516639189,8.88,134.58,134.49,48.48193439]
[1642516639390,0.25,134.57,134.49,48.48193439]
[1642516639792,8.88,134.58,134.49,122.33193439]
[1642516640394,8.88,134.58,134.5,11.3981]
[1642516640696,8.88,134.58,134.5,87.9711]
[1642516641801,8.88,134.58,134.5,2.973]
[1642516642294,0.25,134.57,134.5,2.973]
[1642516643393,2.973,134.56,134.47,13.22415068]
[1642516643593,8.26,134.56,134.47,2.07275068]
[1642516643792,8.26,134.56,134.46,2.07275068]
[1642516643793,0.25,134.55,134.46,2.07275068]
[1642516643996,9.13,134.55,134.46,2.07275068]
[1642516644201,2.973,134.54,134.46,2.07275068]
[1642516644612,9.13,134.53,134.46,2.07275068]
[1642516644805,2.974,134.52,134.44,50.28420034]
[1642516645001,8.88,134.51,134.44,50.28420034]
[1642516645205,9.13,134.51,134.44,50.28420034]
[1642516645702,8.88,134.51,134.44,50.28420034]
[1642516646028,8.88,134.51,134.44,48.21144966]
[1642516646630,8.88,134.51,134.44,49.92043014]
[1642516646831,10.42080786,134.55,134.45,0.25]
[1642516647031,10.42080786,134.55,134.45,77.074]
[1642516647232,8.88,134.55,134.46,1.70898048]
[1642516647432,8.88,134.55,134.47,76.823]
[1642516647631,8.88,134.55,134.47,75.11692]
[1642516647835,8.88,134.55,134.47,77.073]
[1642516648432,8.88,134.55,134.48,11.1504]
[1642516648633,8.88,134.55,134.49,41.9590204]
[1642516649032,8.88,134.55,134.46,6.75473116]
[1642516649033,8.88,134.55,134.46,5.04575068]
[1642516649234,8.88,134.55,134.45,5.04575068]
[1642516649438,6.0,134.54,134.45,2.07275068]
[1642516649637,6.25,134.54,134.45,2.07275068]
[1642516649837,0.25,134.54,134.45,2.07275068]
[1642516650039,8.88,134.55,134.46,38.57413662]
[1642516650239,8.88,134.55,134.46,112.68413662]
[1642516650438,8.88,134.55,134.46,117.3661171]
[1642516650638,11.853,134.59,134.47,11.4011]
[1642516650841,1.54080786,134.6,134.48,76.823]
[1642516651040,1.54080786,134.6,134.48,78.53198048]
[1642516651041,6.0,134.59,134.48,78.53198048]
[1642516651239,1.54080786,134.59,134.49,1.95898048]
[1642516651438,1.54080786,134.59,134.49,10.83898048]
[1642516651640,1.54080786,134.59,134.5,1.70898048]
[1642516651837,1.54080786,134.59,134.51,39.97787653]
[1642516652038,8.88,134.64,134.51,40.22787653]
[1642516652039,10.42080786,134.64,134.51,40.22787653]
[1642516652238,21.56580786,134.64,134.52,76.822]
[1642516652642,21.56580786,134.64,134.52,2.972]
[1642516652643,6.25,134.63,134.52,2.972]
[1642516652838,2.972,134.62,134.51,39.97787653]
[1642516653040,2.972,134.62,134.52,73.85]
[1642516653241,0.25,134.61,134.52,73.85]
[1642516653442,0.25,134.61,134.51,39.97787653]
[1642516653640,11.852,134.62,134.51,39.97787653]
[1642516653841,0.25,134.61,134.51,39.97787653]
[1642516654441,11.3967,134.61,134.52,11.1466]
[1642516654641,2.972,134.62,134.52,12.85558048]
[1642516654849,1.54080786,134.64,134.53,4.68098048]
[1642516655142,1.54080786,134.64,134.54,73.85]
[1642516655342,1.54080786,134.64,134.56,35.68671371]
[1642516655542,1.54080786,134.64,134.57,2.971]
[1642516655741,1.54080786,134.64,134.57,5.18998048]
[1642516655944,1.54080786,134.67,134.57,42.32228048]
[1642516656146,1.54080786,134.67,134.57,116.17228048]
[1642516656343,1.54080786,134.67,134.57,113.9533]
[1642516656853,1.54080786,134.67,134.59,11.1407]
[1642516657245,8.88,134.68,134.59,11.4007]
[1642516658549,20.0211,134.68,134.59,11.4007]
[1642516658946,20.0211,134.68,134.59,85.2507]
[1642516659147,8.88,134.68,134.6,0.25]
[1642516659352,1.54080786,134.69,134.62,73.85]
[1642516659552,1.54080786,134.69,134.63,43.44000612]
[1642516659748,1.54080786,134.7,134.63,52.05000612]
[1642516659952,1.54080786,134.7,134.63,55.02000612]
[1642516660152,1.54080786,134.7,134.64,73.85]
[1642516660346,1.54080786,134.7,134.63,54.83800612]
[1642516660549,1.54080786,134.7,134.63,54.57800612]
[1642516661150,14.1076,134.72,134.63,54.57800612]
[1642516661346,2.97,134.72,134.63,54.57800612]
[1642516662350,2.97,134.73,134.63,54.57800612]
[1642516662548,11.1389,134.71,134.63,54.57800612]
[1642516662749,14.1089,134.71,134.63,54.57800612]
[1642516662947,10.51080786,134.72,134.63,128.68800612]
[1642516663151,1.54080786,134.72,134.63,128.68800612]
[1642516663548,4.51080786,134.73,134.63,128.68800612]
[1642516663752,0.25,134.72,134.63,128.68800612]
[1642516663948,11.3876,134.72,134.63,128.68800612]
[1642516664147,17.1376,134.72,134.63,128.68800612]
[1642516664350,4.51080786,134.73,134.63,128.68800612]
[1642516664576,1.54080786,134.73,134.66,11.1351]
[1642516664748,1.54080786,134.73,134.66,11.3951]
[1642516664951,1.54080786,134.73,134.64,2.97]
[1642516665152,1.54080786,134.73,134.63,43.44000612]
[1642516665450,2.97,134.72,134.63,43.44000612]
[1642516665650,0.25,134.72,134.63,43.44000612]
[1642516665851,2.97,134.71,134.6,11.85]
[1642516666050,11.1396,134.7,134.6,8.88]
[1642516666354,11.3896,134.7,134.61,0.25]
[1642516666553,6.0,134.69,134.6,8.88]
[1642516666751,0.25,134.68,134.61,43.4306325]
[1642516666950,8.97,134.69,134.61,43.4306325]
[1642516667152,6.0,134.7,134.61,117.2806325]
[1642516667549,6.0,134.71,134.61,117.2806325]
[1642516667753,0.25,134.69,134.61,117.2806325]
[1642516668153,0.25,134.7,134.61,117.2806325]
[1642516668754,6.0,134.71,134.61,117.2806325]
[1642516669058,6.0,134.71,134.62,3.22]
[1642516669255,20.0183,134.72,134.62,3.48]
[1642516669458,1.54080786,134.73,134.62,3.48]
[1642516669757,10.42080786,134.74,134.62,5.18898048]
[1642516670159,0.25,134.73,134.62,5.18898048]
[1642516670558,21.55750786,134.74,134.62,16.32728048]
[1642516670757,20.0167,134.74,134.63,73.85]
[1642516670957,20.0167,134.74,134.64,2.969]
[1642516671256,20.0167,134.74,134.64,3.479]
[1642516671856,8.88,134.74,134.66,11.1354]
[1642516672081,8.88,134.74,134.68,48.99788335]
[1642516672483,8.88,134.74,134.68,122.84788335]
[1642516673084,1.54080786,134.77,134.69,0.25]
[1642516674297,1.54080786,134.79,134.64,4.67798048]
[1642516674592,63.0,134.75,134.6,2.969]
[1642516674789,63.0,134.75,134.58,5.04175068]
[1642516674790,8.88,134.74,134.58,5.04175068]
[1642516674987,19.88905272,134.74,134.58,2.07275068]
[1642516675185,19.88905272,134.74,134.59,39.58310815]
[1642516675386,11.1374,134.73,134.63,11.1371]
[1642516675687,17.85,134.72,134.64,40.97929393]
[1642516675888,16.42080786,134.72,134.64,40.97929393]
[1642516676989,14.88,134.72,134.64,40.97929393]
[1642516677389,8.88,134.72,134.64,52.11479393]
[1642516677589,8.88,134.72,134.64,52.60209773]
[1642516677792,8.88,134.72,134.64,52.34209773]
[1642516678290,0.25,134.71,134.64,52.34209773]
[1642516678490,3.22,134.71,134.64,52.34209773]
[1642516678691,0.25,134.71,134.64,52.34209773]
[1642516679291,6.25,134.72,134.64,52.34209773]
[1642516679492,2.97,134.71,134.65,6.0]
[1642516679690,2.969,134.72,134.66,0.25]
[1642516679890,1.54080786,134.73,134.66,0.25]
[1642516680091,1.54080786,134.72,134.66,0.25]
[1642516680693,1.54080786,134.72,134.65,9.229]
[1642516680892,1.54080786,134.72,134.65,2.969]
[1642516681091,1.54080786,134.74,134.65,2.969]
[1642516681292,4.50980786,134.74,134.64,41.20659773]
[1642516681491,1.54080786,134.74,134.64,41.20659773]
[1642516681692,1.54080786,134.74,134.65,0.25]
[1642516681893,1.54080786,134.74,134.65,11.3851]
[1642516682494,1.54080786,134.74,134.65,11.6451]
[1642516682696,1.54080786,134.74,134.66,73.85]
[1642516683194,1.54080786,134.73,134.69,48.46314288]
[1642516683594,1.54080786,134.73,134.7,3.219]
[1642516683796,1.54080786,134.73,134.71,6.0643]
[1642516683997,1.54080786,134.77,134.71,6.0643]
[1642516684301,1.54080786,134.77,134.71,80.1743]
[1642516684495,6.0,134.76,134.71,79.9143]
[1642516684699,1.54080786,134.77,134.71,80.1743]
[1642516684996,1.54080786,134.76,134.71,80.1743]
[1642516685897,1.54080786,134.76,134.71,6.3243]
[1642516686099,1.54080786,134.76,134.71,6.0643]
[1642516687101,1.54080786,134.75,134.71,6.0643]
[1642516687307,2.968,134.83,134.75,136.85]
[1642516687502,6.0,134.82,134.76,40.46849519]
[1642516687701,8.28364179,134.88,134.78,28.0]
[1642516687902,8.28364179,134.88,134.8,43.91363113]
[1642516688305,2.966,134.93,134.8,43.91363113]
[1642516688506,2.966,134.93,134.81,0.25]
[1642516688904,11.1231,134.91,134.81,0.25]
[1642516689105,2.966,134.93,134.81,0.25]
[1642516689307,2.966,134.93,134.81,2.964]
[1642516689506,2.966,134.93,134.81,3.214]
[1642516689709,2.965,134.94,134.81,3.214]
[1642516689908,2.965,134.94,134.83,41.11040122]
[1642516690105,2.965,134.97,134.84,2.965]
[1642516690306,2.965,134.99,134.85,10.69]
[1642516690507,43.27224179,135.02,134.86,41.99739705]
[1642516690508,2.964,135.01,134.86,41.99739705]
[1642516690834,2.964,135.01,134.87,10.69]
[1642516691008,2.964,135.01,134.88,11.118]
[1642516691009,11.1167,134.99,134.88,11.118]
[1642516691305,2.964,134.98,134.89,35.64419231]
[1642516691707,2.964,134.99,134.89,35.64419231]
[1642516692308,11.1186,134.97,134.89,46.76199231]
[1642516692511,2.964,134.99,134.89,46.76199231]
[1642516693409,11.1172,134.98,134.89,46.76199231]
[1642516693609,11.3672,134.98,134.89,46.76199231]
[1642516693809,11.1172,134.98,134.89,46.76199231]
[1642516694010,11.1172,134.98,134.9,11.1167]
[1642516694610,11.1163,134.99,134.9,11.1167]
[1642516695212,2.964,135.0,134.95,11.1112]
[1642516695510,246.97664261,135.05,134.96,51.84213709]
[1642516695710,246.97664261,135.05,134.97,37.0249]
[1642516695911,246.97664261,135.05,134.98,11.862]
[1642516696110,8.28364179,135.08,134.99,48.82015093]
[1642516696312,8.28364179,135.08,135.01,11.1061]
[1642516696514,8.28364179,135.08,135.02,38.60898758]
[1642516696712,2.962,135.13,135.02,38.85898758]
[1642516697315,2.962,135.13,135.03,8.9]
[1642516697516,264.25084942,135.15,135.03,20.0053]
[1642516697711,264.25084942,135.15,135.04,0.25]
[1642516697913,264.25084942,135.15,135.05,73.14820339]
[1642516698343,264.25084942,135.15,135.05,37.0061]
[1642516698540,6.25,135.14,135.04,8.9]
[1642516698841,20.3138,135.14,135.04,8.9]
[1642516699841,20.3138,135.14,135.01,11.1072]
[1642516700045,34.82843,135.14,135.01,8.9]
[1642516700241,43.72843,135.14,134.95,23.7538]
[1642516700444,43.72843,135.14,134.97,8.9]
[1642516700943,43.72843,135.14,134.98,44.91297019]
[1642516702548,43.72843,135.14,134.98,56.02317019]
[1642516702945,43.72843,135.14,134.98,44.91297019]
[1642516703146,43.72843,135.14,134.95,8.9]
[1642516703348,11.113,135.08,134.94,2.961]
[1642516703546,26.78763,135.07,134.94,2.961]
[1642516703747,27.03763,135.07,134.94,2.961]
[1642516704148,27.03763,135.07,134.95,43.76828493]
[1642516704553,11.1146,135.04,134.95,43.76828493]
[1642516704751,3.213,135.03,134.95,43.76828493]
[1642516704950,9.213,135.03,134.93,11.1138]
[1642516705152,6.25,135.03,134.9,2.963]
[1642516705356,11.863,135.02,134.88,2.963]
[1642516705550,17.1139,135.01,134.85,11.864]
[1642516705751,2.964,135.0,134.85,8.9]
[1642516705951,2.964,135.0,134.87,48.32483744]
[1642516706151,6.25,134.99,134.87,48.32483744]
[1642516706352,2.964,134.98,134.87,48.32483744]
[1642516706752,0.25,134.97,134.87,48.32483744]
[1642516706954,6.25,134.97,134.87,48.32483744]
[1642516707154,17.3701,134.97,134.87,48.32483744]
[1642516707354,2.964,134.96,134.87,48.32483744]
[1642516707756,0.25,134.95,134.87,48.32483744]
[1642516708156,11.1206,134.94,134.87,59.44423744]
[1642516708354,8.9,135.01,134.87,59.44423744]
[1642516708555,6.0,135.0,134.88,3.214]
[1642516708753,8.964,135.0,134.88,2.964]
[1642516709355,8.964,135.0,134.9,46.63500546]
[1642516709356,11.116,134.99,134.9,46.63500546]
[1642516709558,8.964,134.98,134.86,2.964]
[1642516709759,6.0,134.98,134.86,11.864]
[1642516709959,6.0,134.98,134.86,8.9]
[1642516710161,6.0,134.98,134.87,3.214]
[1642516710365,6.0,134.99,134.89,11.1175]
[1642516710563,2.964,135.02,134.9,41.92788164]
[1642516710564,6.0,135.0,134.9,41.92788164]
[1642516710760,0.25,134.99,134.91,0.25]
[1642516710961,6.0,135.01,134.91,3.214]
[1642516711165,2.964,135.02,134.91,0.25]
[1642516711362,6.0,135.0,134.93,42.18085895]
[1642516711662,211.53090058,135.03,134.96,42.51309686]
[1642516712162,2.963,135.06,134.96,42.51309686]
[1642516712363,2.962,135.07,134.96,42.51309686]
[1642516712561,8.9,135.1,134.96,116.62309686]
[1642516712562,6.0,135.06,134.96,116.62309686]
[1642516712761,6.0,135.06,134.97,94.1111]
[1642516712963,11.1094,135.07,134.97,20.2611]
[1642516713164,0.25,135.06,134.97,94.3711]
[1642516713361,0.25,135.06,134.97,20.5211]
[1642516713563,3.212,135.08,134.97,20.0111]
[1642516713761,12.13763,135.08,134.97,20.0111]
[1642516713961,11.1097,135.06,134.97,20.0111]
[1642516714162,2.962,135.05,134.97,93.8611]
[1642516714363,11.1097,135.06,134.97,22.9731]
[1642516714565,6.0,135.05,134.97,20.2711]
[1642516714763,6.25,135.05,134.97,20.2711]
[1642516714965,0.25,135.05,134.98,0.25]
[1642516715164,0.25,135.05,134.99,11.1093]
[1642516715467,11.1087,135.08,135.0,49.65960369]
[1642516715663,11.1087,135.08,135.01,0.25]
[1642516716564,2.962,135.11,135.01,0.25]
[1642516716764,11.1071,135.09,135.01,14.3186]
[1642516717166,6.0,135.1,135.01,11.3576]
[1642516717365,399.02282342,135.12,135.01,11.6176]
[1642516717765,11.3554,135.11,135.01,11.6176]
[1642516717968,11.1054,135.11,135.01,11.6176]
[1642516718366,11.1054,135.11,135.03,36.29931137]
[1642516718566,11.1054,135.11,135.03,47.40471137]
[1642516718764,11.1054,135.11,135.04,0.25]
[1642516719567,11.1054,135.11,135.03,47.40471137]
[1642516720268,11.1054,135.11,135.04,0.25]
[1642516720471,11.1054,135.11,135.04,11.3547]
[1642516720669,0.25,135.1,135.04,11.3547]
[1642516720869,11.1045,135.13,135.04,11.3547]
[1642516721573,6.0,135.12,135.04,11.3547]
[1642516722173,0.25,135.11,135.04,11.1047]
[1642516722771,8.961,135.13,135.04,11.1047]
[1642516722975,6.0,135.13,135.04,11.1047]
[1642516723174,6.0,135.13,135.04,84.9547]
[1642516723473,6.0,135.13,135.04,93.8547]
[1642516723673,6.0,135.13,135.05,0.25]
[1642516723876,6.0,135.13,135.08,40.15561927]
[1642516724274,111.7,135.14,135.08,40.15561927]
[1642516724478,111.7,135.14,135.09,74.1]
[1642516724705,444.82685253,135.2,135.09,3.47]
[1642516725114,6.0,135.19,135.09,3.21]
[1642516725303,8.959,135.19,135.1,11.0993]
[1642516725605,8.959,135.19,135.11,43.54013454]
[1642516725804,17.0988,135.19,135.11,43.79013454]
[1642516726005,2.959,135.22,135.11,43.79013454]
[1642516726204,11.859,135.23,135.12,2.959]
[1642516726404,11.859,135.23,135.11,43.79013454]
[1642516726605,39.9482,135.25,135.12,73.85]
[1642516726804,39.9482,135.25,135.13,0.25]
[1642516727006,11.0963,135.23,135.13,0.25]
[1642516727204,19.42646768,135.23,135.13,0.25]
[1642516728006,11.0963,135.23,135.14,11.0963]
[1642516728209,11.0963,135.23,135.15,39.8769269]
[1642516729710,0.25,135.22,135.15,39.8769269]
[1642516729906,0.25,135.22,135.15,40.1369269]
[1642516730114,11.0963,135.23,135.15,50.9729269]
[1642516730311,11.0947,135.24,135.15,50.9729269]
[1642516730607,6.0,135.23,135.15,50.9729269]
[1642516731010,6.0,135.25,135.15,50.9729269]
[1642516731413,17.0946,135.25,135.15,50.9729269]
[1642516731610,17.0946,135.25,135.15,124.8229269]
[1642516731809,17.0946,135.25,135.15,125.0829269]
[1642516732009,17.0946,135.25,135.15,50.9729269]
[1642516732210,0.25,135.24,135.15,50.9729269]
[1642516732410,6.0,135.25,135.15,51.2329269]
[1642516732611,6.0,135.26,135.15,51.2329269]
[1642516732810,0.25,135.25,135.15,51.2329269]
[1642516733211,11.3439,135.25,135.15,51.2329269]
[1642516733415,16.59086281,135.36,135.31,291.56163367]
[1642516733611,11.1013,135.33,135.31,25.38453367]
[1642516733815,282.49231814,135.35,135.31,25.38453367]
[1642516734013,8.28364179,135.35,135.31,25.38453367]
[1642516734517,16.59086281,135.36,135.29,59.0]
[1642516734720,16.59086281,135.36,135.33,11.0811]
[1642516734914,0.3711069,135.38,135.34,39.03219997]
[1642516735112,6.9e-06,135.38,135.34,19.88476634]
[1642516735319,6.9e-06,135.38,135.35,8.9]
[1642516735614,2.954,135.49,135.37,50.0]
[1642516735815,11.853,135.53,135.38,57.74321339]
[1642516736017,11.853,135.53,135.38,63.99321339]
[1642516736213,2.953,135.53,135.38,64.25321339]
[1642516736415,2.953,135.53,135.38,72.62421339]
[1642516736713,2.953,135.53,135.4,36.9078]
[1642516736914,2.953,135.53,135.41,60.29811243]
[1642516737113,246.40024067,135.57,135.41,68.25211855]
[1642516737318,2.952,135.6,135.41,68.51211855]
[1642516737515,2.952,135.58,135.41,105.56248183]
[1642516737714,2.952,135.59,135.41,90.19611243]
[1642516737915,25.44002516,135.58,135.41,90.19611243]
[1642516738115,2.952,135.57,135.41,90.19611243]
[1642516738317,3.202,135.57,135.41,90.19611243]
[1642516739616,2.952,135.57,135.41,90.19611243]
[1642516740717,2.952,135.58,135.41,68.00211855]
[1642516740918,8.9,135.57,135.41,57.34611243]
[1642516741124,1.78905272,135.56,135.41,57.34611243]
[1642516741318,41.98237368,135.55,135.41,46.27131243]
[1642516741521,2.952,135.54,135.41,46.27131243]
[1642516741720,11.3238,135.53,135.41,46.27131243]
[1642516742017,2.76019637,135.51,135.37,2.952]
[1642516742217,3.203,135.5,135.37,11.852]
[1642516742417,8.92563,135.49,135.37,2.952]
[1642516742616,2.953,135.48,135.37,2.952]
[1642516742918,11.0811,135.45,135.29,118.7739]
[1642516743118,42.19143431,135.44,135.33,48.89259865]
[1642516743316,44.23048703,135.44,135.33,48.89259865]
[1642516743516,1.78905272,135.43,135.33,48.89259865]
[1642516743720,5.50513574,135.41,135.33,48.89259865]
[1642516743916,2.954,135.4,135.33,48.89259865]
[1642516744117,14.2893,135.4,135.27,8.9]
[1642516744317,14.2893,135.4,135.22,24.5432]
[1642516744518,1.78905272,135.39,135.24,8.9]
[1642516744717,3.205,135.38,135.24,8.9]
[1642516745121,35.33148703,135.38,135.25,42.48677372]
[1642516745319,33.54243431,135.38,135.26,2.956]
[1642516745518,11.0875,135.36,135.26,14.0428]
[1642516745718,11.0875,135.36,135.27,0.25]
[1642516746120,11.0875,135.36,135.26,14.0428]
[1642516746320,0.25,135.35,135.26,14.0428]
[1642516746519,11.3378,135.35,135.26,11.0868]
[1642516746720,11.0878,135.35,135.26,11.0868]
[1642516747117,2.955,135.38,135.26,11.0868]
[1642516747320,45.8584,135.39,135.26,11.0868]
[1642516747321,8.9,135.39,135.26,11.0868]
[1642516747528,11.0837,135.4,135.28,73.85]
[1642516747720,10.68905272,135.44,135.3,11.0829]
[1642516747921,34.22154777,135.43,135.31,37.30334923]
[1642516748122,1.78905272,135.42,135.31,37.30334923]
[1642516748319,2.954,135.41,135.31,37.30334923]
[1642516748521,11.0857,135.38,135.28,2.954]
[1642516748923,12.87475272,135.38,135.28,2.954]
[1642516749120,2.955,135.37,135.26,34.7616]
[1642516749327,76.805,135.37,135.26,23.675]
[1642516749525,11.0884,135.35,135.26,23.675]
[1642516749726,0.25,135.34,135.23,2.955]
[1642516749923,4.99505272,135.34,135.21,123.4543]
[1642516750124,1.78905272,135.33,135.21,8.9]
[1642516750424,2.957,135.32,135.21,8.9]
[1642516750625,15.66732228,135.31,135.21,44.48149896]
[1642516751027,0.25,135.3,135.21,44.48149896]
[1642516751224,2.03905272,135.3,135.21,44.48149896]
[1642516751625,2.03905272,135.3,135.18,85.706]
[1642516751828,4.99605272,135.3,135.18,85.706]
[1642516752024,11.0934,135.28,135.18,96.7992]
[1642516752225,0.25,135.27,135.18,96.7992]
[1642516752627,0.25,135.27,135.19,43.61091134]
[1642516752825,0.25,135.27,135.19,43.86091134]
[1642516753025,14.0493,135.3,135.19,54.95391134]
[1642516753225,11.0923,135.3,135.19,128.80391134]
[1642516753426,11.0923,135.3,135.2,6.0]
[1642516753931,11.0923,135.3,135.21,0.25]
[1642516754130,11.0923,135.3,135.2,6.0]
[1642516754332,11.0923,135.3,135.21,3.207]
[1642516754526,11.0923,135.3,135.22,41.71954193]
[1642516755630,0.25,135.29,135.22,41.71954193]
[1642516756438,0.25,135.29,135.2,2.957]
[1642516756635,2.957,135.28,135.19,11.0923]
[1642516756836,2.957,135.28,135.17,45.5484]
[1642516757035,0.25,135.27,135.17,45.5484]
[1642516757235,0.25,135.27,135.17,48.5064]
[1642516757537,0.25,135.27,135.18,35.24581602]
[1642516757735,2.958,135.31,135.18,120.18941602]
[1642516758138,0.25,135.3,135.18,120.44941602]
[1642516758535,0.25,135.3,135.19,0.25]
[1642516759039,11.0928,135.29,135.19,11.3426]
[1642516759235,0.25,135.28,135.19,11.3426]
[1642516760437,11.0926,135.28,135.19,11.3426]
[1642516760637,11.0926,135.28,135.19,14.2996]
[1642516761036,0.25,135.3,135.19,14.2996]
[1642516761242,8.9,135.32,135.19,14.2996]
[1642516761437,2.957,135.34,135.2,6.0]
[1642516761641,11.0884,135.34,135.24,11.0879]
[1642516762037,2.957,135.37,135.25,38.84710625]
[1642516762251,2.956,135.38,135.25,50.96310625]
[1642516762437,2.956,135.38,135.26,73.85]
[1642516762636,11.0843,135.39,135.28,11.0857]
[1642516763040,11.0843,135.39,135.29,0.25]
[1642516763639,38.9559141,135.39,135.29,0.25]
[1642516764345,11.0843,135.39,135.29,0.25]
[1642516764543,11.0843,135.39,135.3,11.0835]
[1642516764745,0.25,135.38,135.3,11.0835]
[1642516764939,11.0843,135.39,135.3,11.0835]
[1642516765340,11.0843,135.39,135.31,42.69789468]
[1642516765740,13.64405272,135.42,135.31,42.69789468]
[1642516765943,2.955,135.42,135.32,0.25]
[1642516766141,1.78905272,135.44,135.32,12.104]
[1642516766341,4.74305272,135.46,135.32,12.104]
[1642516766543,6.1244054,135.47,135.32,12.364]
[1642516766744,6.1244054,135.47,135.33,6.0]
[1642516766943,6.1244054,135.47,135.34,50.29551228]
[1642516767144,11.0786,135.46,135.34,50.29551228]
[1642516767345,10.55992789,135.45,135.33,6.0]
[1642516767544,2.954,135.45,135.32,34.3971]
[1642516767750,4.74305272,135.45,135.32,34.1371]
[1642516767945,1.78905272,135.44,135.32,9.15]
[1642516768145,1.78905272,135.44,135.32,20.2317]
[1642516768146,2.954,135.43,135.32,20.2317]
[1642516768548,4.74305272,135.43,135.33,39.61311422]
[1642516768747,1.78905272,135.46,135.34,0.25]
[1642516769148,2.954,135.47,135.34,0.25]
[1642516769351,58.0,135.4,135.3,0.44937778]
[1642516769547,0.31246801,135.37,135.19,76.804]
[1642516769747,8.9,135.36,135.19,76.804]
[1642516769947,2.956,135.35,135.19,76.804]
[1642516770152,8.9,135.35,135.19,85.704]